[Event "Turkey IS Bank Super League 2017"]
[Site "Darica-Kocaeli"]
[Date "2017.07.31"]
[Round "7"]
[White "Arat, Ufuk Sezen"]
[Black "Agdelen, Huseyin Can"]
[Result "0-1"]
[ECO "A22"]
[WhiteElo "2400"]
[BlackElo "2309"]
[Annotator "ChessBase"]
[PlyCount "110"]
[EventType "team-tourn"]
[EventCountry "TUR"]
[SourceTitle "playchess.com"]
[Source "ChessBase"]
[SourceQuality "1"]
[TimeControl "40/5400+30:1800+30"]

1. c4 {[%emt 0:00:30]} e5 {[%emt 0:01:00]} 2. Nc3 {[%emt 0:00:30]} Nf6 {[%emt 0:00:30]} 3. g3 {[%emt 0:00:30]} Bb4 {[%emt 0:00:30]} 4. Bg2 {[%emt 0:00:30]} O-O {[%emt 0:01:30]} 5. e3 {[%emt 0:05:30]} Bxc3 {[%emt 0:09:30]} 6. bxc3 {[%emt 0:00:30]} d6 {[%emt 0:03:30]} 7. d3 {[%emt 0:11:30]} e4 {[%emt 0:18:30]} 8. dxe4 {[%emt 0:01:30]} Re8 {[%emt 0:00:30]} 9. c5 {[%emt 0:06:30]} Nxe4 {[%emt 0:08:30]} 10. cxd6 {[%emt 0:05:30]} Nxd6 {[%emt 0:00:30]} 11. Ne2 {[%emt 0:01:30]} Nd7 {[%emt 0:08:30]} 12. O-O {[%emt 0:03:30]} Ne5 {[%emt 0:01:30]} 13. e4 {[%emt 0:07:30]} Nec4 {[%emt 0:05:30]} 14. Nf4 {[%emt 0:00:30]} c6 {[%emt 0:17:30]} 15. Re1 {[%emt 0:03:30]} Qa5 {[%emt 0:01:56]} 16. Qb3 {[%emt 0:09:30]} Bf5 {[%emt 0:02:52]} 17. Re2 {[%emt 0:07:30]} Bd7 {[%emt 0:00:23]} 18. Bd2 {[%emt 0:10:30]} Qc5 {[%emt 0:11:38]} 19. Nd3 {[%emt 0:08:01]} Qh5 {[%emt 0:00:08]} 20. Nf4 {[%emt 0:01:37]} Qc5 {[%emt 0:00:04]} 21. Nd3 {[%emt 0:04:47]} Qh5 {[%emt 0:00:30]} 22. Rae1 {[%emt 0:00:00]} Bg4 {[%emt 0:04:39]} 23. Nf4 {[%emt 0:00:03]} Qc5 {[%emt 0:01:00]} 24. Be3 {[%emt 0:00:30]} Nxe3 {[%emt 0:00:13]} 25. Rxe3 {[%emt 0:00:01]} b5 {[%emt 0:01:02]} 26. h3 {[%emt 0:01:21]} Be6 {[%emt 0:00:11]} 27. Nxe6 {[%emt 0:01:34]} Rxe6 {[%emt 0:00:05]} 28. Kh2 {[%emt 0:04:35]} Nc4 {[%emt 0:00:27]} 29. R3e2 {[%emt 0:00:06]} Rd8 {[%emt 0:00:20]} 30. f4 {[%emt 0:00:43]} Rd3 {[%emt 0:00:36]} 31. Qc2 {[%emt 0:04:09]} Rd8 {[%emt 0:01:51]} 32. e5 {[%emt 0:00:39]} g6 {[%emt 0:00:16]} 33. Re4 {[%emt 0:00:36]} Rd2 {[%emt 0:00:24]} 34. Rxc4 {[%emt 0:00:56]} Qf2 {[%emt 0:00:02]} 35. Qxd2 {[%emt 0:00:41]} Qxd2 {[%emt 0:00:30]} 36. Rce4 {[%emt 0:00:30]} Qxc3 {[%emt 0:00:30]} 37. g4 {[%emt 0:00:00]} f5 {[%emt 0:00:51]} 38. R4e3 {[%emt 0:00:00]} Qc4 {[%emt 0:00:59]} 39. Kg3 {[%emt 0:00:00]} g5 {[%emt 0:00:00]} 40. Rf1 {[%emt 0:00:00]} Qd4 {[%emt 0:00:33]} 41. Ref3 {[%emt 0:03:41]} fxg4 {[%emt 0:04:30]} 42. hxg4 {[%emt 0:06:30]} gxf4+ {[%emt 0:00:30]} 43. Rxf4 {[%emt 0:00:30]} Qxe5 {[%emt 0:00:30]} 44. Be4 {[%emt 0:00:30]} Qd6 {[%emt 0:01:30]} 45. Kg2 {[%emt 0:01:30]} c5 {[%emt 0:03:30]} 46. R1f2 {[%emt 0:02:57]} c4 {[%emt 0:00:30]} 47. g5 {[%emt 0:00:18]} c3 {[%emt 0:03:38]} 48. Bc2 {[%emt 0:02:58]} a5 {[%emt 0:16:15]} 49. a4 {[%emt 0:06:00]} Qd5+ {[%emt 0:00:04]} 50. Kh2 {[%emt 0:00:07]} Re1 {[%emt 0:00:19]} 51. Rf5 {[%emt 0:07:12]} Qh1+ {[%emt 0:02:01]} 52. Kg3 {[%emt 0:00:04]} Rg1+ {[%emt 0:00:18]} 53. Kf4 {[%emt 0:00:15]} Qh4+ {[%emt 0:00:00]} 54. Ke3 {[%emt 0:05:01]} Re1+ {[%emt 0:00:03]} 55. Re2 {[%emt 0:00:14]} Qg3+ {[%emt 0:00:41]} 0-1

[Event "Turkey IS Bank Super League 2017"]
[Site "Darica-Kocaeli"]
[Date "2017.07.31"]
[Round "7"]
[White "Atakisi, Umut"]
[Black "Ertan, Can"]
[Result "0-1"]
[ECO "A13"]
[WhiteElo "2373"]
[BlackElo "2377"]
[Annotator "NA"]
[PlyCount "120"]
[EventType "team-tourn"]
[EventCountry "TUR"]
[SourceTitle "playchess.com"]
[Source "ChessBase"]
[SourceQuality "1"]
[TimeControl "40/5400+30:1800+30"]

1. Nf3 {[%emt 0:00:00]} Nf6 {[%emt 0:01:00]} 2. c4 {[%emt 0:00:00]} e6 {[%emt 0:00:30]} 3. g3 {[%emt 0:00:30]} d5 {[%emt 0:00:30]} 4. Bg2 {[%emt 0:00:30]} d4 {[%emt 0:00:30]} 5. e3 {[%emt 0:00:30]} c5 {[%emt 0:00:30]} 6. O-O {[%emt 0:00:30]} Nc6 {[%emt 0:00:30]} 7. exd4 {[%emt 0:00:30]} cxd4 {[%emt 0:00:30]} 8. d3 {[%emt 0:00:30]} Bd6 {[%emt 0:00:30] A13: English Opening: 1...e6} 9. Na3 {[%emt 0:00:30]} (9. Bg5 h6 10. Bxf6 Qxf6 11. Nbd2 Qd8 12. a3 a5 13. Rc1 O-O 14. Re1 Bd7 15. c5 Be7 16. Ne4 {½-½ (26) Bruzon Batista,L (2652)-Mareco,S (2648) Saint Louis 2017}) 9... O-O {[%emt 0:00:00]} 10. Re1 {[%emt 0:01:30]} h6 {[%emt 0:00:00]} 11. Nc2 {[%emt 0:14:30]} a5 {[%emt 0:01:30]} 12. b3 {[%emt 0:04:30]} Re8 {[%emt 0:15:30]} ({Black should play} 12... e5 $15) 13. a3 {[%emt 0:21:30]} e5 {[%emt 0:00:00]} 14. Rb1 {[%emt 0:00:30]} Bg4 $146 {[%emt 0:00:00]} ({Predecessor:} 14... Bf5) 15. h3 {[%emt 0:00:30]} Bh5 {[%emt 0:00:30]} 16. g4 {[%emt 0:11:30]} Bg6 {[%emt 0:00:00]} 17. Nh4 {[%emt 0:00:30]} Ne4 {[%emt 0:03:00]} 18. Bxe4 {[%emt 0:05:30]} ({Wrong is} 18. Nxg6 $2 Nc3 $19) 18... Bxe4 {[%emt 0:06:30]} 19. Rxe4 {[%emt 0:00:30]} Qxh4 {[%emt 0:00:30]} 20. Qf3 {[%emt 0:05:30]} Qe7 {[%emt 0:00:30]} 21. h4 {[%emt 0:00:30]} Qf8 {[%emt 0:01:30]} 22. b4 {[%emt 0:09:30]} axb4 {[%emt 0:07:30]} 23. Nxb4 {[%emt 0:00:00]} Nxb4 {[%emt 0:05:30]} 24. axb4 {[%emt 0:00:00]} Bxb4 {[%emt 0:00:30]} 25. Re2 {[%emt 0:06:34]} b6 {[%emt 0:18:30]} 26. g5 {[%emt 0:01:08]} Re6 {[%emt 0:02:30]} 27. gxh6 {[%emt 0:03:44]} gxh6 {[%emt 0:03:30]} 28. h5 $15 {[%emt 0:02:58]} (28. Rxb4 $5 Ra1 29. Rb5 Rxc1+ 30. Kh2 $15) 28... Rae8 {[%emt 0:05:30]} 29. Qf5 {[%emt 0:04:09]} Qg7+ {[%emt 0:01:30]} 30. Kf1 {[%emt 0:01:51]} Be7 {[%emt 0:01:30]} 31. Re4 {[%emt 0:01:17]} Qh7 {[%emt 0:03:30]} 32. Qxh7+ {[%emt 0:01:59]} Kxh7 {[%emt 0:00:30]} 33. f4 {[%emt 0:00:09]} Bc5 {[%emt 0:00:30]} 34. Kf2 {[%emt 0:02:11]} exf4 {[%emt 0:03:19]} 35. Kf3 {[%emt 0:00:04]} Rxe4 {[%emt 0:00:53]} 36. dxe4 {[%emt 0:00:30]} Re5 {[%emt 0:00:00]} 37. Bxf4 {[%emt 0:00:59]} Rxh5 {[%emt 0:00:00]} 38. Kg4 {[%emt 0:01:16]} Kg6 {[%emt 0:00:18]} 39. Bc7 {[%emt 0:00:00]} f5+ {[%emt 0:04:42]} 40. exf5+ {[%emt 0:00:00]} Rxf5 {[%emt 0:00:18]} 41. Bxb6 {[%emt 0:01:41]} h5+ {[%emt 0:00:30]} 42. Kg3 {[%emt 0:12:02]} Kf6 {[%emt 0:03:30]} 43. Bxc5 {[%emt 0:03:47]} Rxc5 {[%emt 0:00:30]} 44. Kf4 {[%emt 0:00:00]} Rxc4 {[%emt 0:00:30]} 45. Rb6+ {[%emt 0:00:00]} Kf7 {[%emt 0:00:30]} 46. Ke4 {[%emt 0:00:00]} h4 {[%emt 0:00:30]} 47. Kd3 {[%emt 0:04:01]} Ra4 {[%emt 0:00:30]} 48. Rh6 {[%emt 0:00:04]} h3 {[%emt 0:00:30]} 49. Ke4 {[%emt 0:01:04]} Ra3 {[%emt 0:10:30]} 50. Kxd4 {[%emt 0:00:31]} Kg7 {[%emt 0:00:30]} 51. Rh5 {[%emt 0:00:19]} Kg6 {[%emt 0:00:30]} 52. Rh8 {[%emt 0:00:30]} Kf5 {[%emt 0:00:00]} 53. Rf8+ {[%emt 0:11:33]} Kg4 {[%emt 0:00:00]} 54. Rh8 {[%emt 0:01:13]} Kg3 {[%emt 0:03:30]} 55. Rg8+ {[%emt 0:00:23]} Kf2 {[%emt 0:00:30]} 56. Rb8 {[%emt 0:00:43]} h2 {[%emt 0:01:30]} 57. Rb2+ {[%emt 0:00:21]} Kg3 {[%emt 0:00:30]} 58. Rb1 {[%emt 0:00:09]} Kg2 {[%emt 0:00:30]} 59. Rb2+ {[%emt 0:00:02]} Kh3 {[%emt 0:00:00]} 60. Rb1 {[%emt 0:00:04]} Rg3 {[%emt 0:00:00]} 0-1

[Event "Turkey IS Bank Super League 2017"]
[Site "Darica-Kocaeli"]
[Date "2017.07.31"]
[Round "7"]
[White "Soysal, Serkan"]
[Black "Yurtseven, Melih"]
[Result "1-0"]
[ECO "E90"]
[WhiteElo "2367"]
[BlackElo "2353"]
[Annotator "NA"]
[PlyCount "73"]
[EventType "team-tourn"]
[EventCountry "TUR"]
[SourceTitle "playchess.com"]
[Source "ChessBase"]
[SourceQuality "1"]
[TimeControl "40/5400+30:1800+30"]

1. d4 {[%emt 0:00:30]} g6 {[%emt 0:01:00]} 2. c4 {[%emt 0:00:30]} Bg7 {[%emt 0:00:30]} 3. e4 {[%emt 0:00:30]} d6 {[%emt 0:00:30]} 4. Nc3 {[%emt 0:00:30]} Nf6 {[%emt 0:00:30]} 5. h3 {[%emt 0:00:30]} O-O {[%emt 0:00:30]} 6. Be3 {[%emt 0:00:30]} Na6 {[%emt 0:02:30]} 7. Nf3 {[%emt 0:08:30]} c5 {[%emt 0:01:30]} 8. Be2 {[%emt 0:04:30]} cxd4 {[%emt 0:00:30]} 9. Nxd4 {[%emt 0:01:30]} Nc5 {[%emt 0:11:30]} 10. Qc2 {[%emt 0:00:30]} b6 {[%emt 0:02:30]} 11. O-O {[%emt 0:20:30]} Bb7 {[%emt 0:00:30]} 12. Bf3 {[%emt 0:00:30]} Nfd7 {[%emt 0:17:30]} 13. b4 {[%emt 0:05:30]} Na6 {[%emt 0:06:30]} 14. Qb3 {[%emt 0:02:30]} Nc7 $14 {[%emt 0:01:30]} 15. Rfd1 {[%emt 0:08:30]} a6 {[%emt 0:05:30]} 16. Rac1 {[%emt 0:00:30]} e6 {[%emt 0:04:30]} 17. e5 {[%emt 0:37:06]} d5 {[%emt 0:23:05]} 18. cxd5 {[%emt 0:00:47]} Nxe5 {[%emt 0:00:20]} 19. dxe6 {[%emt 0:01:46]} Bxf3 {[%emt 0:00:17]} 20. exf7+ {[%emt 0:01:54]} Kh8 {[%emt 0:00:07]} 21. Nxf3 {[%emt 0:00:00]} Nxf3+ {[%emt 0:00:27]} 22. gxf3 {[%emt 0:00:03]} Qh4 {[%emt 0:00:21]} 23. Kg2 {[%emt 0:00:43]} Nb5 {[%emt 0:07:28]} 24. Ne4 {[%emt 0:00:20]} Ra7 {[%emt 0:00:30]} 25. Bg5 {[%emt 0:00:58]} Qh5 26. f4 {[%emt 0:01:03]} Qe2 {[%emt 0:05:50]} 27. Re1 {[%emt 0:00:30]} Qb2 {[%emt 0:00:30]} 28. Qxb2 {[%emt 0:00:00]} Bxb2 {[%emt 0:00:00]} 29. a4 {[%emt 0:00:00]} Na3 {[%emt 0:03:12]} 30. Re2 {[%emt 0:00:23]} Bg7 {[%emt 0:00:55]} 31. Nd6 {[%emt 0:00:37]} h6 {[%emt 0:04:22]} 32. Be7 {[%emt 0:00:45]} Rfa8 {[%emt 0:01:04]} 33. Nc8 {[%emt 0:01:50]} Rxe7 {[%emt 0:00:24]} 34. Rxe7 {[%emt 0:01:22]} Bf8 {[%emt 0:00:15]} 35. Re8 {[%emt 0:00:29]} Kg7 {[%emt 0:00:02]} 36. Nd6 {[%emt 0:00:21]} Ra7 {[%emt 0:00:30]} 37. Rxf8 {[%emt 0:00:00]} 1-0

[Event "Turkey IS Bank Super League 2017"]
[Site "Darica-Kocaeli"]
[Date "2017.07.31"]
[Round "7"]
[White "Kerigan, Demre"]
[Black "Karatekin, Tamer"]
[Result "1-0"]
[ECO "C08"]
[WhiteElo "2354"]
[BlackElo "2287"]
[Annotator "NA"]
[PlyCount "75"]
[EventType "team-tourn"]
[EventCountry "TUR"]
[SourceTitle "playchess.com"]
[Source "ChessBase"]
[SourceQuality "1"]
[TimeControl "40/5400+30:1800+30"]

1. e4 {[%emt 0:00:30]} e6 {[%emt 0:02:00]} 2. d4 {[%emt 0:00:30]} d5 {[%emt 0:00:30]} 3. Nd2 {[%emt 0:00:30]} c5 {[%emt 0:00:30]} 4. exd5 {[%emt 0:00:30]} exd5 {[%emt 0:03:30]} 5. Bb5+ {[%emt 0:02:30]} Bd7 {[%emt 0:00:30]} 6. Qe2+ {[%emt 0:00:30]} Be7 {[%emt 0:00:30]} 7. dxc5 {[%emt 0:02:30]} Nf6 {[%emt 0:00:30]} 8. Ngf3 {[%emt 0:00:00]} O-O {[%emt 0:00:00]} 9. Bxd7 {[%emt 0:01:00]} Nbxd7 {[%emt 0:01:00]} 10. O-O {[%emt 0:04:30] C08: French Tarrasch: 3...c5 4 exd5 exd5 sidelines} Nxc5 {[%emt 0:01:30]} 11. Nb3 {[%emt 0:00:30]} Nce4 {[%emt 0:00:30]} 12. Bf4 {[%emt 0:01:30]} Re8 {[%emt 0:00:30]} 13. Qb5 {[%emt 0:03:30]} Bd6 {[%emt 0:07:30]} 14. Bxd6 $146 {[%emt 0:06:30]} ({Predecessor:} 14. Be3 Qc7 15. h3 a6 16. Qd3 Rac8 17. c3 b5 {½-½ (47) Rjabzev,K (2292)-Gavrilov,A (2491) Voronezh 2014}) 14... Nxd6 {[%emt 0:00:30]} 15. Qd3 {[%emt 0:01:30]} Nc4 {[%emt 0:01:30]} 16. Rab1 {[%emt 0:01:30]} Qb6 {[%emt 0:05:30]} 17. c3 {[%emt 0:16:30]} Qa6 {[%emt 0:06:30]} 18. Nbd4 {[%emt 0:02:30]} Ne4 {[%emt 0:05:30]} 19. Rfe1 $15 {[%emt 0:25:30]} Qxa2 {[%emt 0:09:30]} 20. Nf5 {[%emt 0:02:30]} Ncd6 {[%emt 0:26:30]} 21. Ne3 {[%emt 0:10:42]} Nf6 {[%emt 0:02:30]} 22. Red1 {[%emt 0:02:31]} Rad8 {[%emt 0:09:23]} 23. Ra1 {[%emt 0:06:52]} Qb3 {[%emt 0:00:01]} 24. Rxa7 {[%emt 0:00:35]} g6 {[%emt 0:02:51]} 25. Raa1 {[%emt 0:02:24]} Nde4 {[%emt 0:05:00]} 26. Qc2 {[%emt 0:00:26]} Qb6 {[%emt 0:00:23]} 27. Rd4 {[%emt 0:00:12]} Re6 {[%emt 0:03:06]} 28. Rad1 {[%emt 0:00:15]} Rde8 {[%emt 0:00:56]} 29. Nxd5 {[%emt 0:01:17]} Nxd5 {[%emt 0:00:37]} 30. Rxd5 {[%emt 0:00:05]} Ng5 {[%emt 0:01:12]} 31. Rxg5 {[%emt 0:02:50]} Re2 {[%emt 0:00:39]} 32. Qc1 {[%emt 0:00:19]} Qxf2+ {[%emt 0:00:25]} 33. Kh1 {[%emt 0:00:04]} Rc2 {[%emt 0:03:18]} 34. Qf4 {[%emt 0:00:44]} Rce2 {[%emt 0:02:03]} 35. h4 {[%emt 0:01:20]} h6 {[%emt 0:00:23]} 36. Rg4 {[%emt 0:01:19]} h5 {[%emt 0:00:13]} 37. Rg5 {[%emt 0:00:16]} R8e4 {[%emt 0:00:59]} 38. Rd8+ {[%emt 0:00:41]} 1-0

[Event "Turkey IS Bank Super League 2017"]
[Site "Darica-Kocaeli"]
[Date "2017.07.31"]
[Round "7"]
[White "Buksa, Nataliya"]
[Black "Osmak, Iulija"]
[Result "1/2-1/2"]
[ECO "C07"]
[WhiteElo "2328"]
[BlackElo "2353"]
[Annotator "NA"]
[PlyCount "122"]
[EventType "team-tourn"]
[EventCountry "TUR"]
[SourceTitle "playchess.com"]
[Source "ChessBase"]
[SourceQuality "1"]
[TimeControl "40/5400+30:1800+30"]

1. e4 {[%emt 0:00:00]} e6 {[%emt 0:01:00]} 2. d4 {[%emt 0:00:00]} d5 {[%emt 0:00:30]} 3. Nd2 {[%emt 0:00:30]} c5 {[%emt 0:00:30]} 4. exd5 {[%emt 0:00:30]} Qxd5 {[%emt 0:00:30]} 5. Ngf3 {[%emt 0:00:30]} cxd4 {[%emt 0:00:30]} 6. Bc4 {[%emt 0:00:30]} Qd6 {[%emt 0:00:30]} 7. O-O {[%emt 0:00:30]} Nc6 {[%emt 0:00:30]} 8. Nb3 {[%emt 0:00:30]} a6 {[%emt 0:00:30] C07: French Tarrasch: 3...c5, 4 Ngf3 and 4 exd5 Qxd5} 9. Nbxd4 {[%emt 0:00:30]} Nxd4 {[%emt 0:00:30]} 10. Nxd4 {[%emt 0:00:30]} Qc7 {[%emt 0:00:30]} 11. Bd3 {[%emt 0:00:30]} Nf6 {[%emt 0:00:30]} 12. Re1 {[%emt 0:00:00]} Bd7 {[%emt 0:03:30]} (12... h6 13. Qf3 Bd6 14. h3 Bh2+ 15. Kh1 Be5 16. Qe3 Nd7 17. f4 Bxd4 18. Qxd4 O-O 19. b3 Nf6 {1-0 (29) Harikrishna,P (2753)-Wang,H (2717) Huaian 2016}) 13. c3 {[%emt 0:09:00]} Bd6 {[%emt 0:03:30]} 14. h3 {[%emt 0:01:30]} Bh2+ {[%emt 0:11:30]} 15. Kh1 {[%emt 0:00:30]} Bf4 {[%emt 0:00:00]} 16. Qf3 {[%emt 0:06:30]} Bxc1 {[%emt 0:00:00]} 17. Raxc1 {[%emt 0:00:30]} O-O {[%emt 0:00:30]} 18. Bb1 $146 {[%emt 0:05:30]} ({Find the theoretical novelty and annotate with similar games:} 18. Rcd1 Rad8 19. Qe3 Bc8 20. Qe5 Qxe5 21. Rxe5 {½-½ (47) Blauhut,H (2446)-Loeschnauer,R (2372) ICCF email 2004}) 18... Rad8 {[%emt 0:04:30]} 19. Re3 {[%emt 0:20:30]} Bc8 {[%emt 0:05:30]} 20. Rce1 {[%emt 0:00:30]} b5 {[%emt 0:05:30]} 21. Re5 {[%emt 0:05:30]} Bb7 {[%emt 0:11:30]} 22. Qf4 {[%emt 0:05:30]} Rd5 {[%emt 0:09:30]} 23. a3 {[%emt 0:06:30]} h6 {[%emt 0:05:30]} 24. Qe3 {[%emt 0:02:30]} Rxe5 {[%emt 0:05:30]} 25. Qxe5 {[%emt 0:00:00]} Qxe5 {[%emt 0:00:30]} 26. Rxe5 {[%emt 0:00:00]} Bd5 {[%emt 0:00:00]} 27. Re2 {[%emt 0:12:30]} Rd8 {[%emt 0:08:00]} 28. Kg1 {[%emt 0:02:30]} Kf8 {[%emt 0:00:30]} 29. f3 {[%emt 0:00:30]} Nd7 {[%emt 0:06:47]} 30. Be4 {[%emt 0:00:30]} Bxe4 {[%emt 0:02:08]} 31. Rxe4 {[%emt 0:00:30]} Nb6 {[%emt 0:00:33]} 32. Kf2 {[%emt 0:01:10]} Nc4 {[%emt 0:03:00]} 33. Re2 {[%emt 0:00:01]} Rd5 {[%emt 0:00:33]} 34. f4 {[%emt 0:03:09]} g6 {[%emt 0:03:16]} 35. Kf3 {[%emt 0:04:39]} Ke7 {[%emt 0:01:21]} 36. Nc2 {[%emt 0:06:06]} Rd3+ {[%emt 0:03:03]} 37. Kf2 {[%emt 0:02:09]} Nxb2 {[%emt 0:02:10]} 38. Nb4 {[%emt 0:00:57]} Nd1+ {[%emt 0:00:44]} 39. Ke1 {[%emt 0:00:01]} Rd6 {[%emt 0:00:05]} 40. Na2 {[%emt 0:00:00]} Kd7 {[%emt 0:04:20]} 41. g4 $1 {[%emt 0:08:48]} Rd3 {[%emt 0:07:30]} 42. Nb4 {[%emt 0:01:30]} Rd6 {[%emt 0:00:30]} 43. Na2 $19 {[%emt 0:01:30]} Kc6 {[%emt 0:02:30]} 44. f5 {[%emt 0:00:30]} exf5 {[%emt 0:07:18]} 45. gxf5 {[%emt 0:00:30]} Kc5 {[%emt 0:03:16]} 46. f6 {[%emt 0:03:30]} Kc4 {[%emt 0:00:51]} 47. Re7 {[%emt 0:00:30]} Kb3 {[%emt 0:00:35]} 48. Nc1+ {[%emt 0:02:30]} Kxa3 {[%emt 0:01:33]} 49. Ne2 {[%emt 0:00:30]} Kb2 {[%emt 0:00:45]} 50. c4 {[%emt 0:02:34]} bxc4 {[%emt 0:08:25]} 51. Rxf7 {[%emt 0:00:02]} Kc2 {[%emt 0:01:14]} 52. Rc7 {[%emt 0:01:53]} Rxf6 {[%emt 0:01:58]} 53. Rxc4+ {[%emt 0:00:01]} Kd3 {[%emt 0:00:21]} 54. Rd4+ {[%emt 0:00:14]} Ke3 {[%emt 0:00:52]} 55. Rxd1 {[%emt 0:00:16]} Kf3 {[%emt 0:00:05]} 56. Kf1 {[%emt 0:03:23]} Ke3+ {[%emt 0:00:41]} 57. Ke1 {[%emt 0:00:01]} g5 {[%emt 0:00:01]} 58. Ra1 {[%emt 0:01:24]} Kf3 {[%emt 0:00:24]} 59. Kf1 {[%emt 0:01:14]} g4 {[%emt 0:01:06]} 60. hxg4 {[%emt 0:00:54]} Kxg4+ {[%emt 0:00:35]} 61. Kg2 {[%emt 0:00:01]} Rb6 {[%emt 0:00:00]} 1/2-1/2

[Event "Turkey IS Bank Super League 2017"]
[Site "Darica-Kocaeli"]
[Date "2017.07.31"]
[Round "7"]
[White "Ozen, Bahadir"]
[Black "Ozen, Deniz"]
[Result "1/2-1/2"]
[ECO "A12"]
[WhiteElo "2315"]
[BlackElo "2351"]
[Annotator "NA"]
[PlyCount "83"]
[EventType "team-tourn"]
[EventCountry "TUR"]
[SourceTitle "playchess.com"]
[Source "ChessBase"]
[SourceQuality "1"]
[TimeControl "40/5400+30:1800+30"]

{[%evp 33,83,-29,59,66,66,68,72,0,35,0,62,5,0,0,2,-2,6,0,0,0,0,0,6,0,0,0,7,0,1,0,0,0,4,0,0,0,0,0,0,0,0,0,3,0,0,0,0,0,0,32767,32767,0]} 1. g3 {[%emt 0:01:30]} d5 {[%emt 0:01:00]} 2. Bg2 {[%emt 0:00:30]} Nf6 {[%emt 0:00:30]} 3. Nf3 {[%emt 0:00:30]} Bf5 {[%emt 0:00:30]} 4. O-O {[%emt 0:00:30]} e6 {[%emt 0:00:30]} 5. d3 {[%emt 0:00:30]} Be7 {[%emt 0:00:30]} 6. Nbd2 {[%emt 0:00:30]} h6 {[%emt 0:00:30]} 7. c4 {[%emt 0:00:30]} c6 {[%emt 0:00:30]} 8. b3 {[%emt 0:00:30]} O-O {[%emt 0:00:30]} 9. Bb2 {[%emt 0:00:30]} Nbd7 {[%emt 0:00:00]} 10. Qc2 {[%emt 0:00:00]} a5 {[%emt 0:00:00]} 11. a3 {[%emt 0:00:00]} Re8 {[%emt 0:00:00]} 12. Bc3 {[%emt 0:06:30]} Bd6 {[%emt 0:02:00]} 13. b4 {[%emt 0:02:30]} axb4 {[%emt 0:00:30]} 14. axb4 {[%emt 0:00:00]} Qe7 {[%emt 0:00:30]} 15. e4 {[%emt 0:04:00]} dxe4 {[%emt 0:00:30]} 16. dxe4 {[%emt 0:00:30]} Bh7 {[%emt 0:00:00]} 17. Qb2 {[%emt 0:01:30]} ({Better is} 17. Rxa8 $14 Rxa8 18. c5) 17... e5 {[%emt 0:02:00]} (17... Rxa1 $1 $11 18. Rxa1 Nxe4 19. Nxe4 Bxe4) 18. Nh4 {[%emt 0:02:30]} Qe6 $1 {[%emt 0:01:30]} 19. Qc2 {[%emt 0:00:30]} Qe7 $1 {[%emt 0:00:00]} 20. Qb2 {[%emt 0:01:30]} Qe6 {[%emt 0:00:00]} 21. Qc2 {[%emt 0:00:00]} Qe7 {[%emt 0:00:00]} 22. Ra4 {[%emt 0:02:00]} Rxa4 {[%emt 0:02:00]} 23. Qxa4 {[%emt 0:01:30]} b5 {[%emt 0:00:00]} 24. cxb5 {[%emt 0:04:30]} cxb5 {[%emt 0:00:00]} 25. Qxb5 {[%emt 0:00:30]} Rb8 {[%emt 0:00:30]} 26. Qc6 {[%emt 0:01:30]} Bxb4 {[%emt 0:00:00]} 27. Rb1 {[%emt 0:02:30]} Bxc3 {[%emt 0:00:00]} 28. Rxb8+ {[%emt 0:00:30]} Nxb8 {[%emt 0:00:30]} 29. Qxc3 {[%emt 0:00:30]} Nbd7 {[%emt 0:00:00]} 30. Qc8+ {[%emt 0:01:30]} Qf8 {[%emt 0:00:00]} 31. Qc4 {[%emt 0:02:30]} Qe7 {[%emt 0:00:30]} 32. Qc8+ {[%emt 0:00:30]} Qe8 {[%emt 0:00:30]} 33. Qxe8+ {[%emt 0:01:30]} Nxe8 {[%emt 0:00:00]} 34. Nf5 {[%emt 0:00:00]} Nc5 {[%emt 0:00:00]} 35. Ne3 {[%emt 0:01:00]} Nd6 {[%emt 0:01:30]} 36. f3 {[%emt 0:00:30]} Kf8 {[%emt 0:00:00]} 37. Bf1 {[%emt 0:00:30]} f6 {[%emt 0:00:00]} 38. Ndc4 {[%emt 0:01:30]} Nxc4 {[%emt 0:01:30]} 39. Bxc4 {[%emt 0:00:30]} Bg8 {[%emt 0:00:30]} 40. Bd5 {[%emt 0:00:00]} Bxd5 {[%emt 0:30:30]} 41. Nxd5 {[%emt 0:02:00]} Kf7 {[%emt 0:00:00]} 42. Kf2 $11 {[%emt 0:00:30]} 1/2-1/2